[Event "Early-Titled-Tuesday-Blitz-November-28-2023"]
[Site "Chess.com"]
[Date "2023.11.28"]
[Round "10"]
[White "EvgenyBurmakin"]
[Black "mbachez"]
[Result "1-0"]
[WhiteElo "2444"]
[BlackElo "2565"]
[TimeControl "180+1"]
[EndTime "10:02:00 PST"]
[Termination "EvgenyBurmakin won on time"]

1. e4 {[%clk 0:03:00.9]} 1... c6 {[%clk 0:02:59.5]} 2. Nc3 {[%clk 0:03:00.7]}
2... d5 {[%clk 0:02:59.4]} 3. Nf3 {[%clk 0:03:01.2]} 3... dxe4 {[%clk
0:02:59.6]} 4. Nxe4 {[%clk 0:03:01.7]} 4... Nf6 {[%clk 0:03:00.1]} 5. Qe2 {[%clk
0:03:01.4]} 5... Nxe4 {[%clk 0:02:53.6]} 6. Qxe4 {[%clk 0:03:02.3]} 6... Be6
{[%clk 0:02:53.7]} 7. c4 {[%clk 0:02:45.2]} 7... g6 {[%clk 0:02:41]} 8. Qe5
{[%clk 0:02:21.1]} 8... Rg8 {[%clk 0:02:39.7]} 9. d4 {[%clk 0:02:17.8]} 9... Bg7
{[%clk 0:02:39.5]} 10. Qe3 {[%clk 0:02:13.1]} 10... Bg4 {[%clk 0:02:35]} 11. Ne5
{[%clk 0:02:03.9]} 11... Bxe5 {[%clk 0:02:13.8]} 12. Qxe5 {[%clk 0:02:04.8]}
12... Nd7 {[%clk 0:02:13.9]} 13. Qe3 {[%clk 0:01:58.5]} 13... Qb6 {[%clk
0:02:09.1]} 14. Qc3 {[%clk 0:01:50.9]} 14... Nf6 {[%clk 0:01:59.6]} 15. Bd3
{[%clk 0:01:42.1]} 15... Bf5 {[%clk 0:01:56.8]} 16. Be3 {[%clk 0:01:34.9]} 16...
Bxd3 {[%clk 0:01:51.3]} 17. Qxd3 {[%clk 0:01:35.1]} 17... O-O-O {[%clk
0:01:51.4]} 18. O-O-O {[%clk 0:01:29.6]} 18... Qa6 {[%clk 0:01:47.6]} 19. Kb1
{[%clk 0:01:27.7]} 19... e5 {[%clk 0:01:47.6]} 20. Bg5 {[%clk 0:00:58.5]} 20...
Rxd4 {[%clk 0:01:34.8]} 21. Qh3+ {[%clk 0:00:53.7]} 21... Nd7 {[%clk 0:01:32.5]}
22. Rxd4 {[%clk 0:00:52.6]} 22... exd4 {[%clk 0:01:32.6]} 23. Qxh7 {[%clk
0:00:49.1]} 23... Rf8 {[%clk 0:01:31.3]} 24. Be7 {[%clk 0:00:41.5]} 24... Qxc4
{[%clk 0:01:08.1]} 25. Bxf8 {[%clk 0:00:40.2]} 25... d3 {[%clk 0:01:02.2]} 26.
Bh6 {[%clk 0:00:33.5]} 26... Qe4 {[%clk 0:00:53.6]} 27. Qh8+ {[%clk 0:00:21.5]}
27... Kc7 {[%clk 0:00:52.8]} 28. Qc3 {[%clk 0:00:14.7]} 28... Ne5 {[%clk
0:00:18.9]} 29. Rd1 {[%clk 0:00:11.6]} 29... Qe2 {[%clk 0:00:13.7]} 30. Qd2
{[%clk 0:00:09.9]} 30... Qh5 {[%clk 0:00:04.4]} 31. Bf4 {[%clk 0:00:09.8]} 31...
f6 {[%clk 0:00:03.2]} 32. Qxd3 {[%clk 0:00:09.7]} 1-0

[Event "Early-Titled-Tuesday-Blitz-November-28-2023"]
[Site "Chess.com"]
[Date "2023.11.28"]
[Round "10"]
[White "Witty_Alien"]
[Black "katharinareinecke"]
[Result "1-0"]
[WhiteElo "2237"]
[BlackElo "2004"]
[TimeControl "180+1"]
[EndTime "10:02:00 PST"]
[Termination "Witty_Alien won on time"]

1. e4 {[%clk 0:03:00.9]} 1... c6 {[%clk 0:02:58.9]} 2. d4 {[%clk 0:03:00.8]}
2... d5 {[%clk 0:02:57.9]} 3. Nd2 {[%clk 0:03:01.7]} 3... g6 {[%clk 0:02:54.6]}
4. h4 {[%clk 0:03:01.3]} 4... Nf6 {[%clk 0:02:47.7]} 5. e5 {[%clk 0:03:01.5]}
5... Nh5 {[%clk 0:02:41.9]} 6. Ngf3 {[%clk 0:02:55.8]} 6... Bg4 {[%clk
0:02:39.1]} 7. e6 {[%clk 0:02:56.4]} 7... Bxe6 {[%clk 0:02:35.2]} 8. Ng5 {[%clk
0:02:56.2]} 8... Bd7 {[%clk 0:02:18]} 9. g4 {[%clk 0:02:48.9]} 9... Ng7 {[%clk
0:02:11.9]} 10. h5 {[%clk 0:02:49.5]} 10... gxh5 {[%clk 0:01:57.1]} 11. Qf3
{[%clk 0:02:31.1]} 11... f6 {[%clk 0:01:46.3]} 12. gxh5 {[%clk 0:02:12.7]} 12...
fxg5 {[%clk 0:01:40]} 13. h6 {[%clk 0:02:13]} 13... g4 {[%clk 0:01:13.8]} 14.
Qb3 {[%clk 0:02:01.2]} 14... Nf5 {[%clk 0:01:04.7]} 15. Bd3 {[%clk 0:01:50.4]}
15... Na6 {[%clk 0:00:43]} 16. Qxb7 {[%clk 0:01:47.6]} 16... Nc7 {[%clk
0:00:36.4]} 17. Nb3 {[%clk 0:01:34.6]} 17... e6 {[%clk 0:00:25.3]} 18. Bf4
{[%clk 0:01:24.4]} 18... Bd6 {[%clk 0:00:17.4]} 19. Be5 {[%clk 0:01:10.1]} 19...
Bxe5 {[%clk 0:00:16.9]} 20. dxe5 {[%clk 0:01:10.6]} 20... Kf7 {[%clk 0:00:14.6]}
21. O-O-O {[%clk 0:01:08.3]} 21... a5 {[%clk 0:00:14.5]} 22. Nc5 {[%clk
0:01:06.4]} 22... Rb8 {[%clk 0:00:13.9]} 23. Qa7 {[%clk 0:01:03.1]} 23... Nb5
{[%clk 0:00:13.8]} 24. Bxb5 {[%clk 0:01:01.3]} 24... cxb5 {[%clk 0:00:12.4]} 25.
Nxd7 {[%clk 0:01:01.9]} 25... Kg6 {[%clk 0:00:11.6]} 26. Nf6 {[%clk 0:00:59]}
26... Rc8 {[%clk 0:00:09.2]} 27. Rdg1 {[%clk 0:00:56.6]} 27... Nxh6 {[%clk
0:00:03.9]} 28. Nxg4 {[%clk 0:00:36.9]} 28... Nxg4 {[%clk 0:00:03.4]} 29. Rxg4+
{[%clk 0:00:36.7]} 29... Kf5 {[%clk 0:00:03.9]} 30. Rhg1 {[%clk 0:00:03.9]}
30... Rc7 {[%clk 0:00:02.3]} 31. Qd4 {[%clk 0:00:03.7]} 1-0

[Event "Early-Titled-Tuesday-Blitz-November-28-2023"]
[Site "Chess.com"]
[Date "2023.11.28"]
[Round "10"]
[White "AndresDelgado77"]
[Black "juniortay"]
[Result "0-1"]
[WhiteElo "2289"]
[BlackElo "2515"]
[TimeControl "180+1"]
[EndTime "10:02:02 PST"]
[Termination "juniortay won on time"]

1. e4 {[%clk 0:03:00.8]} 1... c5 {[%clk 0:03:00]} 2. Nf3 {[%clk 0:02:59.3]} 2...
d6 {[%clk 0:03:00.5]} 3. d4 {[%clk 0:02:57.7]} 3... cxd4 {[%clk 0:03:01.4]} 4.
Qxd4 {[%clk 0:02:58.1]} 4... a6 {[%clk 0:02:59.1]} 5. Bg5 {[%clk 0:02:57.1]}
5... Nc6 {[%clk 0:02:58.5]} 6. Qd2 {[%clk 0:02:56.3]} 6... h6 {[%clk 0:02:55.7]}
7. Bh4 {[%clk 0:02:55.1]} 7... g5 {[%clk 0:02:55.9]} 8. Bg3 {[%clk 0:02:55.1]}
8... Bg7 {[%clk 0:02:56.5]} 9. Nc3 {[%clk 0:02:54.8]} 9... Qa5 {[%clk
0:02:51.7]} 10. Bc4 {[%clk 0:02:49.8]} 10... Qb4 {[%clk 0:02:43.2]} 11. Bb3
{[%clk 0:02:18.5]} 11... Bxc3 {[%clk 0:02:08.8]} 12. bxc3 {[%clk 0:02:16.2]}
12... Qxe4+ {[%clk 0:02:07.2]} 13. Kf1 {[%clk 0:02:14.4]} 13... Nf6 {[%clk
0:01:57.2]} 14. Re1 {[%clk 0:02:06.2]} 14... Qf5 {[%clk 0:01:56.6]} 15. Bxd6
{[%clk 0:01:18.5]} 15... O-O {[%clk 0:01:54.6]} 16. Ba3 {[%clk 0:00:56.2]} 16...
Be6 {[%clk 0:01:41]} 17. Nd4 {[%clk 0:00:47.1]} 17... Nxd4 {[%clk 0:01:38.2]}
18. cxd4 {[%clk 0:00:46.9]} 18... Rae8 {[%clk 0:00:57.9]} 19. Re5 {[%clk
0:00:34.5]} 19... Qg6 {[%clk 0:00:45.9]} 20. Bxe6 {[%clk 0:00:25.5]} 20... fxe6
{[%clk 0:00:46.8]} 21. Rxe6 {[%clk 0:00:23.8]} 21... Qf7 {[%clk 0:00:45.8]} 22.
Re1 {[%clk 0:00:15.3]} 22... Nd5 {[%clk 0:00:36.7]} 23. c4 {[%clk 0:00:12.6]}
23... Nf4 {[%clk 0:00:36.6]} 24. g3 {[%clk 0:00:11.6]} 24... Nh3 {[%clk
0:00:35.6]} 25. f4 {[%clk 0:00:06.3]} 25... Qxc4+ {[%clk 0:00:34.5]} 26. Kg2
{[%clk 0:00:05.6]} 26... g4 {[%clk 0:00:34.4]} 27. Qe2 {[%clk 0:00:02.1]} 27...
Qd5+ {[%clk 0:00:24.4]} 28. Qe4 {[%clk 0:00:02.5]} 28... Qxa2+ {[%clk
0:00:23.6]} 29. Re2 {[%clk 0:00:03.1]} 29... Qf7 {[%clk 0:00:22]} 30. Bb2 {[%clk
0:00:03.5]} 30... Qf5 {[%clk 0:00:16.6]} 31. Qxb7 {[%clk 0:00:02.4]} 31... Nxf4+
{[%clk 0:00:14.4]} 32. gxf4 {[%clk 0:00:02]} 32... Qxf4 {[%clk 0:00:15.3]} 33.
Rf1 {[%clk 0:00:02.1]} 33... Qxf1+ {[%clk 0:00:15.3]} 0-1

[Event "Early-Titled-Tuesday-Blitz-November-28-2023"]
[Site "Chess.com"]
[Date "2023.11.28"]
[Round "10"]
[White "lefonghua"]
[Black "HATilay"]
[Result "1-0"]
[WhiteElo "2710"]
[BlackElo "2521"]
[TimeControl "180+1"]
[EndTime "10:02:07 PST"]
[Termination "lefonghua won on time"]

1. d4 {[%clk 0:03:00.9]} 1... Nf6 {[%clk 0:02:59.5]} 2. c4 {[%clk 0:03:01.2]}
2... e6 {[%clk 0:02:57.5]} 3. Nc3 {[%clk 0:03:01.5]} 3... Bb4 {[%clk 0:02:57]}
4. f3 {[%clk 0:03:01.6]} 4... c5 {[%clk 0:02:56.3]} 5. a3 {[%clk 0:03:01.8]}
5... Bxc3+ {[%clk 0:02:54.9]} 6. bxc3 {[%clk 0:03:02.7]} 6... O-O {[%clk
0:02:42.2]} 7. e4 {[%clk 0:03:01.6]} 7... Ne8 {[%clk 0:02:33]} 8. Bd3 {[%clk
0:02:53.8]} 8... b6 {[%clk 0:02:27.3]} 9. Qe2 {[%clk 0:02:49.9]} 9... Nc6 {[%clk
0:02:26.7]} 10. Be3 {[%clk 0:02:48.7]} 10... Ba6 {[%clk 0:02:25.8]} 11. Nh3
{[%clk 0:02:46.6]} 11... Na5 {[%clk 0:02:26]} 12. O-O {[%clk 0:02:43.7]} 12...
Rc8 {[%clk 0:02:10]} 13. Rac1 {[%clk 0:02:43]} 13... d5 {[%clk 0:01:53.9]} 14.
cxd5 {[%clk 0:02:39.3]} 14... Bxd3 {[%clk 0:01:54.3]} 15. Qxd3 {[%clk
0:02:39.2]} 15... exd5 {[%clk 0:01:54]} 16. e5 {[%clk 0:02:38.4]} 16... Nc4
{[%clk 0:01:42.3]} 17. f4 {[%clk 0:02:38.2]} 17... f5 {[%clk 0:01:31.2]} 18.
dxc5 {[%clk 0:02:29.7]} 18... Nxe3 {[%clk 0:01:17.3]} 19. Qxe3 {[%clk
0:02:29.3]} 19... Rxc5 {[%clk 0:01:18]} 20. Ng5 {[%clk 0:02:20.5]} 20... Qe7
{[%clk 0:01:14.3]} 21. Rfd1 {[%clk 0:02:13.7]} 21... Nc7 {[%clk 0:01:14.2]} 22.
Rd3 {[%clk 0:02:04.7]} 22... Rc8 {[%clk 0:01:01]} 23. Rcd1 {[%clk 0:01:56.3]}
23... Rc4 {[%clk 0:00:35.8]} 24. Nf3 {[%clk 0:01:11.9]} 24... Re4 {[%clk
0:00:34.6]} 25. Qd2 {[%clk 0:01:07.8]} 25... Qxa3 {[%clk 0:00:32.9]} 26. Nd4
{[%clk 0:01:07.2]} 26... Qc5 {[%clk 0:00:30.7]} 27. Kh1 {[%clk 0:01:05.5]} 27...
Rd8 {[%clk 0:00:16.9]} 28. Nxf5 {[%clk 0:01:03]} 28... Rf8 {[%clk 0:00:14]} 29.
Nd4 {[%clk 0:00:52.4]} 29... Rexf4 {[%clk 0:00:12.9]} 30. h3 {[%clk 0:00:52.5]}
30... Rf1+ {[%clk 0:00:12.6]} 31. Rxf1 {[%clk 0:00:52.7]} 31... Rxf1+ {[%clk
0:00:13.5]} 32. Kh2 {[%clk 0:00:53.4]} 32... Rf8 {[%clk 0:00:12.4]} 33. Rg3
{[%clk 0:00:52.8]} 33... Qe7 {[%clk 0:00:12.3]} 34. Qe3 {[%clk 0:00:47.7]} 34...
Ne6 {[%clk 0:00:08.7]} 35. Nb5 {[%clk 0:00:46.5]} 35... Nc5 {[%clk 0:00:06.6]}
36. Nd6 {[%clk 0:00:45.3]} 36... Qe6 {[%clk 0:00:03.5]} 37. Qg5 {[%clk
0:00:42.9]} 37... Qd7 {[%clk 0:00:02.8]} 38. Nf5 {[%clk 0:00:41.9]} 38... Ne6
{[%clk 0:00:03.5]} 39. Qh5 {[%clk 0:00:39.3]} 39... Kh8 {[%clk 0:00:03.5]} 40.
Qg4 {[%clk 0:00:34.3]} 40... Qf7 {[%clk 0:00:02.5]} 41. Ne3 {[%clk 0:00:29.6]}
41... Nc5 {[%clk 0:00:01.8]} 42. Rf3 {[%clk 0:00:25.1]} 42... Qe7 {[%clk
0:00:01.8]} 43. Nxd5 {[%clk 0:00:24.8]} 43... Qxe5+ {[%clk 0:00:02.2]} 44. Nf4
{[%clk 0:00:20.8]} 1-0

[Event "Early-Titled-Tuesday-Blitz-November-28-2023"]
[Site "Chess.com"]
[Date "2023.11.28"]
[Round "10"]
[White "Chessmissile07"]
[Black "Sadykov_Ramil"]
[Result "0-1"]
[WhiteElo "2844"]
[BlackElo "2719"]
[TimeControl "180+1"]
[EndTime "10:02:10 PST"]
[Termination "Sadykov_Ramil won by checkmate"]

1. a3 {[%clk 0:03:00.9]} 1... c5 {[%clk 0:02:58.6]} 2. Nf3 {[%clk 0:02:56.8]}
2... Nc6 {[%clk 0:02:58.2]} 3. c4 {[%clk 0:02:48.1]} 3... Nf6 {[%clk 0:02:56]}
4. g3 {[%clk 0:02:47.4]} 4... d5 {[%clk 0:02:56.1]} 5. cxd5 {[%clk 0:02:45.8]}
5... Nxd5 {[%clk 0:02:56.1]} 6. Bg2 {[%clk 0:02:46.7]} 6... e5 {[%clk 0:02:53]}
7. O-O {[%clk 0:02:46.7]} 7... Be7 {[%clk 0:02:51.3]} 8. d3 {[%clk 0:02:46.8]}
8... Be6 {[%clk 0:02:46.6]} 9. Nc3 {[%clk 0:02:47]} 9... f6 {[%clk 0:02:41.7]}
10. Bd2 {[%clk 0:02:42.6]} 10... O-O {[%clk 0:02:20.2]} 11. Rc1 {[%clk
0:02:42.4]} 11... Rc8 {[%clk 0:02:16.8]} 12. Nxd5 {[%clk 0:02:37.8]} 12... Bxd5
{[%clk 0:02:16.1]} 13. Bc3 {[%clk 0:02:33.7]} 13... Qd7 {[%clk 0:02:12]} 14. Nd2
{[%clk 0:02:33.5]} 14... Rfd8 {[%clk 0:02:04.5]} 15. Bxd5+ {[%clk 0:02:24.8]}
15... Qxd5 {[%clk 0:02:05.4]} 16. Qa4 {[%clk 0:02:25.1]} 16... a6 {[%clk
0:01:59.7]} 17. b4 {[%clk 0:01:53.4]} 17... b5 {[%clk 0:01:43.3]} 18. Qxa6
{[%clk 0:01:42.2]} 18... cxb4 {[%clk 0:01:33.7]} 19. Bxb4 {[%clk 0:01:36.7]}
19... Nxb4 {[%clk 0:01:24.7]} 20. Qxc8 {[%clk 0:01:22.8]} 20... Nxd3 {[%clk
0:01:15.3]} 21. Qc7 {[%clk 0:00:47.5]} 21... Nxc1 {[%clk 0:01:11]} 22. Rxc1
{[%clk 0:00:25.9]} 22... Qxd2 {[%clk 0:01:09.7]} 23. e3 {[%clk 0:00:22.5]} 23...
Bxa3 {[%clk 0:01:04.6]} 24. Ra1 {[%clk 0:00:20.5]} 24... b4 {[%clk 0:01:02.2]}
25. h4 {[%clk 0:00:20.3]} 25... h5 {[%clk 0:00:50.9]} 26. Qc4+ {[%clk
0:00:16.4]} 26... Qd5 {[%clk 0:00:49.3]} 27. Qe2 {[%clk 0:00:13.7]} 27... e4
{[%clk 0:00:49.5]} 28. Qc2 {[%clk 0:00:12.9]} 28... Kh7 {[%clk 0:00:45.2]} 29.
Qc7 {[%clk 0:00:12.6]} 29... Kh6 {[%clk 0:00:44.8]} 30. Qf4+ {[%clk 0:00:12.2]}
30... Kg6 {[%clk 0:00:44.5]} 31. Qc7 {[%clk 0:00:12.3]} 31... Qe5 {[%clk
0:00:41.4]} 32. Qxd8 {[%clk 0:00:07.9]} 32... Qxa1+ {[%clk 0:00:40.9]} 33. Kg2
{[%clk 0:00:08.8]} 33... Qe5 {[%clk 0:00:40.7]} 34. f4 {[%clk 0:00:08]} 34...
exf3+ {[%clk 0:00:40.4]} 35. Kxf3 {[%clk 0:00:08.7]} 35... b3 {[%clk 0:00:35.9]}
36. g4 {[%clk 0:00:07.1]} 36... hxg4+ {[%clk 0:00:35.3]} 37. Kg2 {[%clk
0:00:07.5]} 37... b2 {[%clk 0:00:34.8]} 38. Qd3+ {[%clk 0:00:05.4]} 38... Qf5
{[%clk 0:00:33.9]} 39. h5+ {[%clk 0:00:05.7]} 39... Kg5 {[%clk 0:00:33.3]} 40.
Qd2 {[%clk 0:00:04.4]} 40... Qf3+ {[%clk 0:00:29.9]} 41. Kh2 {[%clk 0:00:04.1]}
41... Qh3+ {[%clk 0:00:27.4]} 42. Kg1 {[%clk 0:00:03.6]} 42... b1=Q+ {[%clk
0:00:27.9]} 43. Kf2 {[%clk 0:00:02.7]} 43... Qh2# {[%clk 0:00:28.1]} 0-1

[Event "Early-Titled-Tuesday-Blitz-November-28-2023"]
[Site "Chess.com"]
[Date "2023.11.28"]
[Round "10"]
[White "OK97"]
[Black "RobertJFischer71"]
[Result "1-0"]
[WhiteElo "2791"]
[BlackElo "2640"]
[TimeControl "180+1"]
[EndTime "10:02:10 PST"]
[Termination "OK97 won by resignation"]

1. e4 {[%clk 0:03:00.9]} 1... e5 {[%clk 0:03:00.4]} 2. Nf3 {[%clk 0:03:00.3]}
2... Nc6 {[%clk 0:03:01]} 3. Bb5 {[%clk 0:03:00.5]} 3... a6 {[%clk 0:03:01.3]}
4. Ba4 {[%clk 0:03:00.8]} 4... Nf6 {[%clk 0:03:01]} 5. O-O {[%clk 0:03:01]} 5...
b5 {[%clk 0:03:01.7]} 6. Bb3 {[%clk 0:03:00.9]} 6... Bc5 {[%clk 0:03:02.5]} 7.
a4 {[%clk 0:02:56.4]} 7... Rb8 {[%clk 0:03:02]} 8. c3 {[%clk 0:02:56.6]} 8... d6
{[%clk 0:03:02.1]} 9. d4 {[%clk 0:02:56.6]} 9... Bb6 {[%clk 0:03:02.7]} 10. a5
{[%clk 0:02:52.5]} 10... Ba7 {[%clk 0:03:02.7]} 11. h3 {[%clk 0:02:52.8]} 11...
Bb7 {[%clk 0:03:01.8]} 12. Be3 {[%clk 0:02:50.8]} 12... Ra8 {[%clk 0:03:02.1]}
13. Nbd2 {[%clk 0:02:18.6]} 13... O-O {[%clk 0:02:58.8]} 14. Re1 {[%clk
0:02:13.8]} 14... h6 {[%clk 0:02:54.7]} 15. Qc2 {[%clk 0:02:13.8]} 15... Re8
{[%clk 0:02:30.3]} 16. Nf1 {[%clk 0:01:57.4]} 16... exd4 {[%clk 0:02:28.3]} 17.
cxd4 {[%clk 0:01:46.5]} 17... Nxe4 {[%clk 0:01:44.2]} 18. Rec1 {[%clk
0:01:21.6]} 18... d5 {[%clk 0:01:31]} 19. Qd1 {[%clk 0:01:01.8]} 19... Rc8
{[%clk 0:01:16.6]} 20. N1h2 {[%clk 0:00:55.4]} 20... Nb4 {[%clk 0:01:07.3]} 21.
Ne5 {[%clk 0:00:47.7]} 21... c5 {[%clk 0:01:03.5]} 22. Qh5 {[%clk 0:00:36.2]}
22... Rc7 {[%clk 0:00:30.4]} 23. Nhg4 {[%clk 0:00:26.7]} 23... Nf6 {[%clk
0:00:18.9]} 24. Nxf6+ {[%clk 0:00:24.3]} 24... Qxf6 {[%clk 0:00:19.8]} 25. Ng4
{[%clk 0:00:24.7]} 25... Qg6 {[%clk 0:00:14.6]} 26. Qxg6 {[%clk 0:00:25]} 26...
fxg6 {[%clk 0:00:15.5]} 27. dxc5 {[%clk 0:00:25.9]} 27... Nd3 {[%clk 0:00:15.6]}
28. c6 {[%clk 0:00:21]} 28... Bxe3 {[%clk 0:00:13.2]} 29. Bxd5+ {[%clk
0:00:17.9]} 29... Kf8 {[%clk 0:00:13.6]} 30. Nxe3 {[%clk 0:00:10.8]} 30... Nxc1
{[%clk 0:00:13.8]} 31. cxb7 {[%clk 0:00:09.4]} 31... Ne2+ {[%clk 0:00:10.3]} 32.
Kh2 {[%clk 0:00:09.7]} 32... Nf4 {[%clk 0:00:09.9]} 33. Bf3 {[%clk 0:00:10.1]}
33... Ne6 {[%clk 0:00:09.7]} 34. Rd1 {[%clk 0:00:05.2]} 34... Nd8 {[%clk
0:00:07.2]} 35. b8=Q {[%clk 0:00:04.4]} 1-0

[Event "Early-Titled-Tuesday-Blitz-November-28-2023"]
[Site "Chess.com"]
[Date "2023.11.28"]
[Round "10"]
[White "CraiggoryC"]
[Black "amanjazu"]
[Result "0-1"]
[WhiteElo "2178"]
[BlackElo "2359"]
[TimeControl "180+1"]
[EndTime "10:02:10 PST"]
[Termination "amanjazu won on time"]

1. e4 {[%clk 0:02:09.4]} 1... Nf6 {[%clk 0:02:58.1]} 2. e5 {[%clk 0:02:05.6]}
2... Nd5 {[%clk 0:02:58]} 3. d4 {[%clk 0:02:01.1]} 3... d6 {[%clk 0:02:57.5]} 4.
Nf3 {[%clk 0:02:01.4]} 4... g6 {[%clk 0:02:53.6]} 5. Be2 {[%clk 0:02:00.2]} 5...
Bg7 {[%clk 0:02:53.5]} 6. O-O {[%clk 0:02:00.2]} 6... O-O {[%clk 0:02:52.5]} 7.
Nbd2 {[%clk 0:01:54.2]} 7... Nc6 {[%clk 0:02:52.1]} 8. exd6 {[%clk 0:01:48.4]}
8... cxd6 {[%clk 0:02:51.8]} 9. c3 {[%clk 0:01:47.9]} 9... e5 {[%clk 0:02:36.7]}
10. Nc4 {[%clk 0:01:37.9]} 10... e4 {[%clk 0:02:30.8]} 11. Ne1 {[%clk
0:01:15.8]} 11... f5 {[%clk 0:02:28.3]} 12. Qb3 {[%clk 0:00:59.4]} 12... Kh8
{[%clk 0:02:27.5]} 13. Ne3 {[%clk 0:00:45.4]} 13... Nc7 {[%clk 0:02:19]} 14. g3
{[%clk 0:00:37.7]} 14... g5 {[%clk 0:02:10.1]} 15. N3g2 {[%clk 0:00:24.9]} 15...
h6 {[%clk 0:02:04.5]} 16. h4 {[%clk 0:00:24]} 16... Bf6 {[%clk 0:01:59.7]} 17.
hxg5 {[%clk 0:00:17]} 17... hxg5 {[%clk 0:02:00.6]} 18. Qd1 {[%clk 0:00:15.5]}
18... Kg7 {[%clk 0:01:55.7]} 19. Bc4 {[%clk 0:00:09.9]} 19... d5 {[%clk
0:01:55.2]} 20. Bb3 {[%clk 0:00:10.4]} 20... Ne6 {[%clk 0:01:54.4]} 21. Ne3
{[%clk 0:00:10]} 21... Ne7 {[%clk 0:01:52.7]} 22. Kg2 {[%clk 0:00:08.9]} 22...
f4 {[%clk 0:01:52]} 23. Ng4 {[%clk 0:00:08.3]} 23... f3+ {[%clk 0:01:51]} 24.
Nxf3 {[%clk 0:00:07.5]} 24... exf3+ {[%clk 0:01:50.8]} 25. Qxf3 {[%clk
0:00:08.4]} 25... Bxd4 {[%clk 0:01:44.4]} 26. Qd3 {[%clk 0:00:08]} 26... Bf6
{[%clk 0:01:34.4]} 27. Bc2 {[%clk 0:00:08.2]} 27... Rh8 {[%clk 0:01:21.7]} 28.
Bxg5 {[%clk 0:00:07.8]} 28... Bxg5 {[%clk 0:01:15.9]} 29. Rh1 {[%clk 0:00:07.6]}
29... Qg8 {[%clk 0:00:15.1]} 30. Ne5 {[%clk 0:00:03.7]} 30... Nf8 {[%clk
0:00:11.5]} 31. Rxh8 {[%clk 0:00:02.5]} 31... Qxh8 {[%clk 0:00:09.1]} 32. Rh1
{[%clk 0:00:03.1]} 32... Qg8 {[%clk 0:00:09.3]} 33. Nf3 {[%clk 0:00:02.6]} 33...
Bf6 {[%clk 0:00:09.1]} 34. Nd4 {[%clk 0:00:02.6]} 34... Neg6 {[%clk 0:00:07.8]}
0-1

[Event "Early-Titled-Tuesday-Blitz-November-28-2023"]
[Site "Chess.com"]
[Date "2023.11.28"]
[Round "10"]
[White "HajiyevKanan"]
[Black "VladimirBugayev"]
[Result "1-0"]
[WhiteElo "2487"]
[BlackElo "2327"]
[TimeControl "180+1"]
[EndTime "10:02:13 PST"]
[Termination "HajiyevKanan won on time"]

1. d4 {[%clk 0:02:19.3]} 1... Nf6 {[%clk 0:02:59.1]} 2. Nf3 {[%clk 0:02:19.9]}
2... g6 {[%clk 0:02:58.5]} 3. c4 {[%clk 0:02:18]} 3... c5 {[%clk 0:02:58.1]} 4.
g3 {[%clk 0:02:17.8]} 4... cxd4 {[%clk 0:02:57.1]} 5. Nxd4 {[%clk 0:02:18.7]}
5... Nc6 {[%clk 0:02:57.4]} 6. Bg2 {[%clk 0:02:19.2]} 6... Bg7 {[%clk 0:02:58]}
7. O-O {[%clk 0:02:19.3]} 7... O-O {[%clk 0:02:58.6]} 8. Nc3 {[%clk 0:02:19.7]}
8... Qa5 {[%clk 0:02:59.1]} 9. Nc2 {[%clk 0:02:19.7]} 9... d6 {[%clk 0:02:54.1]}
10. Bd2 {[%clk 0:02:14.3]} 10... Qh5 {[%clk 0:02:40.2]} 11. e4 {[%clk 0:02:06]}
11... Qxd1 {[%clk 0:02:25.2]} 12. Raxd1 {[%clk 0:02:06.9]} 12... Bg4 {[%clk
0:02:14.7]} 13. f3 {[%clk 0:02:05.6]} 13... Be6 {[%clk 0:02:12.2]} 14. b3 {[%clk
0:02:04.4]} 14... Nd7 {[%clk 0:01:56.4]} 15. Ne3 {[%clk 0:02:01.7]} 15... Bxc3
{[%clk 0:01:49.6]} 16. Bxc3 {[%clk 0:02:01.4]} 16... a5 {[%clk 0:01:48.9]} 17.
Nd5 {[%clk 0:01:56.3]} 17... Bxd5 {[%clk 0:01:43.2]} 18. exd5 {[%clk 0:01:57.2]}
18... Nb4 {[%clk 0:01:43.3]} 19. Rf2 {[%clk 0:01:52.5]} 19... Nc5 {[%clk
0:01:35]} 20. Re2 {[%clk 0:01:45.6]} 20... Rfe8 {[%clk 0:01:32.5]} 21. f4 {[%clk
0:01:40.7]} 21... f5 {[%clk 0:01:28.7]} 22. Bd4 {[%clk 0:01:29.1]} 22... b6
{[%clk 0:01:17.2]} 23. Rb2 {[%clk 0:01:18.4]} 23... a4 {[%clk 0:01:06.9]} 24. a3
{[%clk 0:01:04.1]} 24... Nbd3 {[%clk 0:01:02.2]} 25. Rbd2 {[%clk 0:01:03.9]}
25... axb3 {[%clk 0:00:51.3]} 26. Bf1 {[%clk 0:00:54.3]} 26... Nxf4 {[%clk
0:00:41.1]} 27. gxf4 {[%clk 0:00:53.4]} 27... Rxa3 {[%clk 0:00:40.5]} 28. Rb1
{[%clk 0:00:50.3]} 28... Rea8 {[%clk 0:00:20]} 29. Rdb2 {[%clk 0:00:48.3]} 29...
Ra2 {[%clk 0:00:19.9]} 30. Bxc5 {[%clk 0:00:43.9]} 30... Rxb2 {[%clk 0:00:19.1]}
31. Rxb2 {[%clk 0:00:44.8]} 31... bxc5 {[%clk 0:00:18.7]} 32. Rxb3 {[%clk
0:00:45.4]} 32... Ra1 {[%clk 0:00:17.9]} 33. Rb7 {[%clk 0:00:42.6]} 33... Kf7
{[%clk 0:00:17.5]} 34. Kf2 {[%clk 0:00:41.2]} 34... Rc1 {[%clk 0:00:16.3]} 35.
Be2 {[%clk 0:00:41.3]} 35... Rh1 {[%clk 0:00:16.2]} 36. Kg2 {[%clk 0:00:36.1]}
36... Re1 {[%clk 0:00:16.7]} 37. Bf1 {[%clk 0:00:32.5]} 37... Rc1 {[%clk
0:00:16.3]} 38. h4 {[%clk 0:00:31.2]} 38... Rc2+ {[%clk 0:00:15.8]} 39. Kg3
{[%clk 0:00:31.7]} 39... Rc3+ {[%clk 0:00:15.9]} 40. Kf2 {[%clk 0:00:30.7]}
40... Rc2+ {[%clk 0:00:14.5]} 41. Be2 {[%clk 0:00:31.1]} 41... Rc1 {[%clk
0:00:14.4]} 42. Rb8 {[%clk 0:00:28.2]} 42... Rh1 {[%clk 0:00:13.6]} 43. h5
{[%clk 0:00:20.3]} 43... Rh2+ {[%clk 0:00:09.6]} 44. Ke3 {[%clk 0:00:20.3]}
44... Rh3+ {[%clk 0:00:08]} 45. Bf3 {[%clk 0:00:20.1]} 45... Kf6 {[%clk
0:00:01.3]} 46. Rf8+ {[%clk 0:00:16.6]} 1-0